bitfinex-derivatives/quotes_SOLF0:USTF0_20241231
["timestamp","ask_amount","ask_price","bid_price","bid_amount"]
[1735633984017,20.52961522,193.65,193.51,20.52961522]
[1735633984223,4.24,193.64,193.47,20.52961522]
[1735633984624,1.5344,193.63,193.47,20.52961522]
[1735633985226,20.52961522,193.61,193.43,68.66759386]
[1735633985427,3.127,193.6,193.43,68.66759386]
[1735633985727,20.52961522,193.57,193.39,20.52961522]
[1735633985917,4.24,193.56,193.39,20.52961522]
[1735633986123,20.52961522,193.53,193.39,20.52961522]
[1735633986422,1.5344,193.52,193.39,20.52961522]
[1735633986623,4.24,193.51,193.39,20.52961522]
[1735633987028,4.24,193.51,193.35,20.52961522]
[1735633987225,3.0423,193.5,193.35,20.52961522]
[1735633987623,4.24,193.49,193.35,20.52961522]
[1735633989729,4.24,193.49,193.31,0.2003]
[1735633989929,4.24,193.49,193.34,20.52961522]
[1735633990330,4.24,193.48,193.34,20.52961522]
[1735633990834,4.24,193.47,193.34,20.52961522]
[1735633991629,4.24,193.47,193.35,2.5906]
[1735633991935,4.24,193.47,193.34,20.52961522]
[1735633992435,4.24,193.47,193.31,20.72991522]
[1735633992726,20.52961522,193.46,193.28,27.39858571]
[1735633992932,20.52961522,193.43,193.28,20.52961522]
[1735633993329,20.52961522,193.47,193.28,20.52961522]
[1735633993637,4.24,193.46,193.36,20.52961522]
[1735633993835,53.8,193.49,193.36,20.52961522]
[1735633994032,4.24,193.48,193.36,20.52961522]
[1735633994327,4.24,193.47,193.36,20.52961522]
[1735633994535,3.0423,193.5,193.36,20.52961522]
[1735633994733,4.24,193.5,193.36,20.52961522]
[1735633995037,4.24,193.5,193.4,20.52961522]
[1735633996122,24.76961522,193.5,193.32,27.47588197]
[1735633996329,3.2077,193.49,193.33,20.52961522]
[1735633997838,20.52961522,193.46,193.31,0.2007]
[1735633999135,20.52961522,193.46,193.29,20.52961522]
[1735634001438,4.24,193.48,193.24,27.47588197]
[1735634001439,20.52961522,193.42,193.25,20.52961522]
[1735634001731,5.7689,193.41,193.24,6.86897049]
[1735634002335,5.7689,193.41,193.27,20.52961522]
[1735634002540,5.7689,193.41,193.27,23.12141522]
[1735634002730,1.5289,193.41,193.27,20.52961522]
[1735634002928,4.24,193.4,193.27,20.52961522]
[1735634003735,3.0824,193.39,193.24,6.86897049]
[1735634004236,3.0824,193.39,193.23,48.00549719]
[1735634004935,3.0824,193.39,193.23,20.52961522]
[1735634005335,20.52961522,193.38,193.23,20.52961522]
[1735634005542,20.52961522,193.38,193.21,82.62724592]
[1735634005835,20.52961522,193.34,193.2,352.99579351]
[1735634006040,4.24,193.33,193.2,304.79981424]
[1735634006338,4.24,193.33,193.21,2.5927]
[1735634006539,4.24,193.33,193.2,3.06783959]
[1735634006837,4.24,193.35,193.23,20.52961522]
[1735634007037,3.0824,193.39,193.24,0.2003]
[1735634007238,4.24,193.38,193.24,0.2003]
[1735634007437,4.24,193.38,193.27,23.12151522]
[1735634008043,4.24,193.38,193.27,20.52961522]
[1735634010043,4.24,193.38,193.24,103.15756114]
[1735634010641,4.24,193.38,193.24,20.72991522]
[1735634012544,4.22,193.39,193.24,0.2003]
[1735634013946,4.46,193.38,193.25,23.12181522]
[1735634014147,4.46,193.38,193.25,20.52961522]
[1735634015844,4.46,193.38,193.24,0.2003]
[1735634016150,4.46,193.38,193.26,2.5922]
[1735634016643,4.46,193.38,193.24,0.2003]
[1735634017348,3.1411,193.44,193.28,20.52961522]
[1735634017742,4.46,193.43,193.28,23.12151522]
[1735634017946,4.46,193.42,193.31,20.52961522]
[1735634018147,4.46,193.42,193.32,0.2011]
[1735634018645,4.46,193.42,193.33,2.5912]
[1735634018839,4.46,193.42,193.32,0.2011]
[1735634019243,4.46,193.42,193.32,2.7925]
[1735634019846,53.84,193.46,193.32,2.7925]
[1735634019847,53.84,193.46,193.35,2.591]
[1735634020047,4.46,193.45,193.35,2.591]
[1735634021251,4.46,193.45,193.32,473.02892817]
[1735634021450,7.5129,193.45,193.32,473.02892817]
[1735634021647,5.9383,193.45,193.34,2.5911]
[1735634021846,5.9383,193.45,193.33,20.52961522]
[1735634022149,5.9383,193.45,193.33,23.12081522]
[1735634022344,4.46,193.45,193.33,20.52961522]
[1735634023251,4.46,193.45,193.36,20.52961522]
[1735634023448,1.5643,193.55,193.36,20.52961522]
[1735634023449,22.09391522,193.55,193.36,20.52961522]
[1735634023639,4.46,193.54,193.42,2.59]
[1735634023840,1.5643,193.55,193.42,23.11961522]
[1735634024045,4.46,193.54,193.42,20.52961522]
[1735634024246,4.46,193.54,193.43,0.1997]
[1735634027353,4.46,193.54,193.43,2.7896]
[1735634027747,4.46,193.55,193.45,20.52961522]
[1735634028055,53.84,193.57,193.43,0.1997]
[1735634028056,4.46,193.6,193.44,4.46]
[1735634028252,4.46,193.6,193.49,23.11871522]
[1735634028448,4.46,193.6,193.49,20.52961522]
[1735634029547,4.46,193.6,193.5,2.589]
[1735634029854,4.46,193.6,193.49,20.52961522]
[1735634030151,4.46,193.6,193.46,102.95726114]
[1735634030351,3.1261,193.59,193.46,102.95726114]
[1735634030548,3.1261,193.59,193.46,82.42764592]
[1735634030748,4.7292,193.59,193.46,82.42764592]
[1735634030943,4.7292,193.59,193.43,20.72931522]
[1735634031450,20.52961522,193.58,193.43,20.72931522]
[1735634032154,20.52961522,193.58,193.43,0.1997]
[1735634032451,20.52961522,193.55,193.4,20.52961522]
[1735634032643,20.52961522,193.55,193.39,6.86897049]
[1735634032644,4.46,193.54,193.39,6.86897049]
[1735634033152,20.52961522,193.52,193.38,7.06677049]
[1735634033955,20.52961522,193.52,193.38,0.1978]
[1735634034451,20.52961522,193.52,193.34,24.98961522]
[1735634034452,20.52961522,193.52,193.34,27.39858571]
[1735634034853,1.5516,193.51,193.34,29.98968571]
[1735634035056,1.5516,193.51,193.34,20.52961522]
[1735634035249,1.5516,193.51,193.35,2.591]
[1735634036254,1.5516,193.51,193.34,20.52961522]
[1735634037451,20.52961522,193.48,193.31,20.52961522]
[1735634037654,20.52961522,193.44,193.28,0.1978]
[1735634038055,20.52961522,193.41,193.27,84.51879242]
[1735634038258,4.46,193.4,193.27,84.51879242]
[1735634038448,4.46,193.4,193.24,20.52961522]
[1735634038852,20.52961522,193.38,193.22,7.06677049]
[1735634039058,1.5357,193.37,193.22,7.06677049]
[1735634039258,20.52961522,193.35,193.2,3.06783959]
[1735634039459,4.46,193.34,193.2,3.06783959]
[1735634040254,4.46,193.34,193.19,2.5932]
[1735634040451,6.0641,193.34,193.18,20.52961522]
[1735634040756,4.46,193.35,193.24,20.52961522]
[1735634040958,4.46,193.35,193.21,20.52961522]
[1735634041158,4.46,193.35,193.18,20.52961522]
[1735634041462,4.46,193.35,193.18,23.12291522]
[1735634041648,4.46,193.35,193.18,20.52961522]
[1735634042359,20.52961522,193.33,193.15,20.52961522]
[1735634042559,20.52961522,193.3,193.15,20.52961522]
[1735634042860,4.24,193.29,193.13,48.21386252]
[1735634043059,4.24,193.29,193.13,50.80786252]
[1735634043253,20.52961522,193.27,193.13,48.21386252]
[1735634043557,3.0459,193.26,193.13,48.21386252]
[1735634044649,20.52961522,193.24,193.11,3.0695317]
[1735634044851,20.52961522,193.21,193.06,20.52961522]
[1735634045054,20.52961522,193.21,193.03,20.52961522]
[1735634045259,20.52961522,193.21,193.03,23.12491522]
[1735634045459,4.24,193.23,193.06,20.52961522]
[1735634045761,20.52961522,193.24,193.1,2.5943]
[1735634045956,4.24,193.23,193.09,20.52961522]
[1735634046455,4.24,193.23,193.13,2.594]
[1735634046655,4.24,193.23,193.02,0.2013]
[1735634046859,4.24,193.23,193.07,20.52961522]
[1735634048152,4.24,193.23,193.07,24.76961522]
[1735634048754,4.24,193.23,193.09,2.5945]
[1735634048951,4.24,193.23,193.07,24.76961522]
[1735634048952,4.24,193.23,193.07,20.52961522]
[1735634049950,4.24,193.23,193.04,20.52961522]
[1735634049951,20.52961522,193.22,193.04,20.52961522]
[1735634050361,20.52961522,193.19,193.02,0.2013]
[1735634050653,4.24,193.23,193.04,20.52961522]
[1735634050858,4.24,193.23,193.09,2.5944]
[1735634051058,4.24,193.22,193.07,20.52961522]
[1735634051657,24.76961522,193.22,193.07,20.52961522]
[1735634051964,20.52961522,193.19,193.04,20.52961522]
[1735634052158,20.52961522,193.19,193.02,0.2013]
[1735634052362,20.52961522,193.13,192.96,55.12221274]
[1735634052563,7.4004,193.12,192.96,48.25324225]
[1735634052857,8.901,193.12,192.96,48.25324225]
[1735634053261,20.52961522,193.09,192.96,48.25324225]
[1735634053462,20.52961522,193.09,192.94,0.2042]
[1735634054063,20.52961522,193.09,192.9,20.52961522]
[1735634054263,20.52961522,193.09,192.91,2.5968]
[1735634054659,20.52961522,193.06,192.9,20.52961522]
[1735634054865,4.24,193.05,192.9,20.52961522]
[1735634055267,4.24,193.05,192.87,2.5974]
[1735634055563,20.52961522,193.02,192.86,20.52961522]
[1735634055769,3.1132,193.01,192.86,20.52961522]
[1735634055968,4.6179,193.01,192.83,30.27778197]
[1735634056165,4.6179,193.01,192.83,0.204]
[1735634056369,4.6179,193.01,192.84,2.5978]
[1735634056672,4.6179,193.01,192.83,0.204]
[1735634056867,4.24,193.0,192.83,0.204]
[1735634057172,4.24,193.0,192.86,20.52961522]
[1735634057765,4.24,193.0,192.81,48.28954269]
[1735634057972,4.24,193.0,192.85,23.12731522]
[1735634058169,4.24,193.0,192.85,20.52961522]
[1735634058365,4.6179,193.01,192.81,48.28954269]
[1735634058665,4.24,193.0,192.85,23.12721522]
[1735634058866,4.24,193.0,192.85,2.5976]
[1735634059073,4.6179,193.01,192.83,20.52961522]
[1735634059265,4.24,193.0,192.83,20.52961522]
[1735634059466,4.24,193.0,192.88,2.5972]
[1735634059662,4.24,192.99,192.87,20.52961522]
[1735634060168,4.24,192.99,192.83,20.52961522]
[1735634060372,4.24,192.99,192.81,68.81915791]
[1735634060577,20.52961522,192.94,192.77,27.60258571]
[1735634060873,4.24,192.93,192.77,27.60258571]
[1735634061072,4.24,192.93,192.77,7.07297049]
[1735634061273,20.52961522,192.92,192.77,7.07297049]
[1735634061466,22.07971522,192.92,192.77,0.204]
[1735634061666,20.52961522,192.89,192.74,20.52961522]
[1735634062073,3.0745,192.91,192.74,20.52961522]
[1735634062474,23.60411522,192.91,192.74,20.52961522]
[1735634062975,3.0745,192.91,192.77,20.52961522]
[1735634063476,7.3145,192.91,192.76,4.24]
[1735634063674,4.24,192.91,192.81,20.52961522]
[1735634064179,4.24,192.91,192.78,20.52961522]
[1735634065872,4.24,192.91,192.74,2.5991]
[1735634066079,24.76961522,192.91,192.74,20.52961522]
[1735634067984,22.09631522,192.95,192.74,20.52961522]
[1735634068282,4.24,192.94,192.82,20.52961522]
[1735634068883,4.24,192.94,192.82,23.12751522]
[1735634069283,4.24,192.94,192.85,2.5976]
[1735634069580,4.24,192.94,192.82,20.52961522]
[1735634069786,4.24,192.94,192.83,2.5977]
[1735634069980,4.24,192.94,192.82,20.52961522]
[1735634070381,3.1721,192.96,192.85,20.52961522]
[1735634070682,4.24,192.99,192.88,20.52961522]
[1735634070983,4.24,192.99,192.85,20.52961522]
[1735634071184,4.24,192.99,192.83,11.47592467]
[1735634071384,4.24,192.99,192.84,27.47588197]
[1735634072085,3.0983,193.02,192.84,27.47588197]
[1735634072282,4.34,193.01,192.82,103.16236114]
[1735634072477,4.34,193.01,192.9,20.52961522]
[1735634073279,4.34,193.01,192.87,20.52961522]
[1735634073484,4.34,193.01,192.86,169.19529184]
[1735634073485,4.34,193.01,192.86,164.85529184]
[1735634073685,20.52961522,193.0,192.86,164.85529184]
[1735634074082,20.52961522,193.0,192.85,678.14285239]
[1735634074290,20.52961522,192.97,192.85,678.14285239]
[1735634074683,1.5056,192.96,192.85,678.14285239]
[1735634074883,4.34,192.95,192.85,6.86897049]
[1735634075091,4.34,192.95,192.8,678.14285239]
[1735634075292,20.52961522,192.94,192.8,678.14285239]
[1735634075494,4.34,192.95,192.8,678.14285239]
[1735634075994,4.34,192.95,192.8,207.91312422]
[1735634076182,4.34,192.95,192.8,205.31502422]
[1735634076387,20.52961522,192.91,192.8,205.31502422]
[1735634076684,3.0797,192.9,192.8,205.31502422]
[1735634076885,4.34,192.89,192.8,205.31502422]
[1735634077792,4.34,192.89,192.74,678.14285239]
[1735634078182,4.34,192.89,192.74,680.74175239]
[1735634078385,4.34,192.89,192.74,205.31502422]
[1735634079186,4.34,192.89,192.74,541.26616958]
[1735634079394,4.34,192.89,192.74,678.14285239]
[1735634080488,20.52961522,192.88,192.73,20.52961522]
[1735634081693,20.52961522,192.88,192.73,23.12871522]
[1735634082387,20.52961522,192.85,192.72,205.31502422]
[1735634083389,20.52961522,192.85,192.71,0.2051]
[1735634085090,4.34,192.84,192.71,0.2051]
[1735634085290,4.34,192.84,192.68,413.7061719]
[1735634085887,20.52961522,192.83,192.68,413.7061719]
[1735634086588,20.52961522,192.71,192.68,410.63004844]
[1735634086784,4.34,192.7,192.68,410.63004844]
[1735634086985,4.34,192.7,192.65,273.75336563]
[1735634087488,4.6833,192.78,192.65,273.75336563]
[1735634087688,4.34,192.77,192.65,273.75336563]
[1735634087885,4.6833,192.78,192.65,273.75336563]
[1735634088092,4.34,192.82,192.7,2.5995]
[1735634088292,4.34,192.82,192.66,20.52961522]
[1735634088492,4.34,192.82,192.66,23.12951522]
[1735634088795,4.34,192.82,192.66,20.52961522]
[1735634088995,4.34,192.82,192.66,493.35744339]
[1735634089194,20.52961522,192.79,192.66,472.82782817]
[1735634089988,20.52961522,192.76,192.63,472.82782817]
[1735634090190,20.52961522,192.72,192.63,472.82782817]
[1735634091286,20.52961522,192.72,192.59,273.75336563]
[1735634092197,20.52961522,192.72,192.57,413.23134844]
[1735634092494,20.52961522,192.72,192.57,410.63004844]
[1735634092694,4.34,192.72,192.62,2.6004]
[1735634093996,4.34,192.72,192.63,2.6004]
[1735634094997,4.34,192.72,192.61,475.42842817]
[1735634095193,4.34,192.72,192.62,4.72197935]
[1735634095396,4.34,192.72,192.61,475.42842817]
[1735634095593,4.34,192.74,192.63,2.6004]
[1735634095796,4.34,192.74,192.61,472.82782817]
[1735634096201,4.34,192.74,192.61,475.42842817]
[1735634096397,4.34,192.74,192.62,4.72487685]
[1735634096703,4.34,192.74,192.61,472.82782817]
[1735634096998,4.34,192.74,192.63,2.6004]
[1735634097801,4.34,192.74,192.61,301.73197465]
[1735634098003,4.34,192.74,192.62,7.33479512]
[1735634098301,4.34,192.74,192.61,301.73197465]
[1735634098497,4.34,192.74,192.63,2.6004]
[1735634098699,4.34,192.74,192.61,301.73197465]
[1735634099796,4.34,192.74,192.61,82.42764592]
[1735634100402,20.52961522,192.72,192.61,82.42764592]
[1735634100898,20.52961522,192.72,192.6,0.2078]
[1735634101103,20.52961522,192.72,192.59,82.42764592]
[1735634101900,20.52961522,192.72,192.59,2.6009]
[1735634102300,20.52961522,192.72,192.57,493.05769436]
[1735634102501,20.52961522,192.72,192.58,2.6011]
[1735634103506,20.52961522,192.72,192.59,2.6009]
[1735634103708,1.6305,192.75,192.59,24.76961522]
[1735634103903,4.24,192.74,192.59,24.76961522]
[1735634104201,1.5532,192.78,192.62,20.52961522]
[1735634104401,4.24,192.77,192.62,20.52961522]
[1735634104601,1.5532,192.78,192.66,2.6]
[1735634104806,4.24,192.77,192.66,2.6]
[1735634105000,4.24,192.77,192.62,20.52961522]
[1735634105197,4.24,192.77,192.65,2.6001]
[1735634105406,4.24,192.77,192.66,0.2072]
[1735634107596,20.52961522,192.79,192.66,0.2072]
[1735634107597,20.52961522,192.82,192.68,2.5997]
[1735634107800,4.24,192.8,192.66,0.2072]
[1735634108609,1.5126,192.84,192.68,20.52961522]
[1735634108807,4.24,192.86,192.71,20.52961522]
[1735634109001,4.24,192.86,192.72,4.24]
[1735634109206,4.24,192.86,192.76,2.5987]
[1735634109405,4.24,192.86,192.72,4.24]
[1735634110007,20.52961522,192.85,192.72,4.24]
[1735634110204,20.52961522,192.85,192.7,30.07538197]
[1735634110406,20.52961522,192.85,192.7,34.31538197]
[1735634110702,20.52961522,192.85,192.71,2.5993]
[1735634110907,20.52961522,192.85,192.69,6.86897049]
[1735634111302,20.52961522,192.82,192.69,6.86897049]
[1735634111502,1.6187,192.81,192.69,6.86897049]
[1735634111706,20.52961522,192.79,192.66,7.07617049]
[1735634111903,20.52961522,192.76,192.66,6.86897049]
[1735634112300,20.52961522,192.73,192.66,6.86897049]
[1735634112499,4.24,192.72,192.66,6.86897049]
[1735634112701,4.24,192.72,192.64,54.95176395]
[1735634112906,4.24,192.72,192.6,0.2067]
[1735634117406,1.6187,192.81,192.71,2.5993]
[1735634117608,4.24,192.83,192.69,4.4468]
[1735634117805,5.8593,192.88,192.74,20.52961522]
[1735634118007,5.8593,192.88,192.75,4.24]
[1735634118008,1.6193,192.88,192.75,4.24]
[1735634118207,5.7673,192.92,192.77,20.52961522]
[1735634118513,5.7673,192.92,192.78,0.2087]
[1735634118708,1.5273,192.92,192.78,0.2087]
[1735634118916,4.24,192.91,192.78,0.2087]
[1735634119119,4.24,192.91,192.8,2.5982]
[1735634119415,20.52961522,192.94,192.78,0.2087]
[1735634120411,20.52961522,192.94,192.81,2.5979]
[1735634120814,24.76961522,192.97,192.8,20.52961522]
[1735634121016,24.76961522,192.97,192.82,2.5978]
[1735634121215,24.76961522,192.97,192.8,24.76961522]
[1735634121413,20.52961522,192.94,192.78,0.2087]
[1735634121720,20.52961522,192.91,192.78,0.2087]
[1735634122014,20.52961522,192.94,192.78,0.2087]
[1735634122317,4.24,192.95,192.8,20.52961522]
[1735634122522,4.24,192.95,192.81,4.24]
[1735634122814,20.52961522,192.94,192.81,4.24]
[1735634123211,20.52961522,192.94,192.81,6.838]
[1735634123416,20.52961522,192.97,192.81,4.24]
[1735634123618,4.24,192.96,192.81,4.24]
[1735634124117,4.24,192.95,192.81,4.24]
[1735634124316,4.24,192.95,192.83,2.5977]
[1735634124516,4.24,192.95,192.81,4.24]
[1735634124912,4.24,192.95,192.8,20.52961522]
[1735634125108,20.52961522,192.94,192.78,4.4487]
[1735634125522,20.52961522,192.94,192.8,2.5981]
[1735634126018,20.52961522,192.94,192.78,4.4487]
[1735634126811,20.52961522,192.94,192.79,2.5983]
[1735634127018,20.52961522,192.94,192.78,4.4487]
[1735634127520,20.52961522,192.94,192.8,2.5981]
[1735634127820,4.24,192.94,192.8,20.52961522]
[1735634128020,20.52961522,192.97,192.8,20.52961522]
[1735634128214,4.24,192.96,192.8,20.52961522]
[1735634128919,4.24,192.96,192.81,2.598]
[1735634129719,4.24,192.96,192.83,2.5976]
[1735634129921,4.24,192.96,192.8,20.52961522]
[1735634130220,4.24,192.96,192.84,2.5975]
[1735634130819,4.24,192.96,192.83,2.5977]
[1735634131122,4.24,192.96,192.8,20.52961522]
[1735634131517,20.52961522,192.94,192.77,20.52961522]
[1735634132116,20.52961522,192.94,192.8,2.5981]
[1735634132517,20.52961522,192.94,192.77,20.52961522]
[1735634133022,20.52961522,192.94,192.82,2.5979]
[1735634133323,4.24,192.96,192.8,24.62961522]
[1735634133519,20.52961522,192.97,192.84,2.5976]
[1735634133723,4.1,192.96,192.81,0.2074]
[1735634134115,20.52961522,192.94,192.77,20.52961522]
[1735634134619,20.52961522,192.9,192.76,4.1]
[1735634134812,4.1,192.89,192.76,4.1]
[1735634135518,4.1,192.89,192.78,2.5984]
[1735634136619,4.1,192.89,192.73,23.33601522]
[1735634136820,20.52961522,192.87,192.73,2.8064]
[1735634137016,20.52961522,192.87,192.72,48.3153723]
[1735634137216,20.52961522,192.84,192.67,20.52961522]
[1735634137420,20.52961522,192.81,192.63,0.2074]
[1735634137620,20.52961522,192.81,192.64,6.7002]
[1735634137822,20.52961522,192.78,192.63,0.2074]
[1735634138122,8.8614,192.77,192.59,20.52961522]
[1735634138323,20.52961522,192.75,192.59,23.13051522]
[1735634138820,20.52961522,192.75,192.59,20.52961522]
[1735634139122,20.52961522,192.75,192.58,4.1]
[1735634139514,20.52961522,192.72,192.58,4.1]
[1735634139719,4.1,192.71,192.57,0.2074]
[1735634139925,4.1,192.71,192.56,48.35180425]
[1735634140314,20.52961522,192.69,192.53,20.52961522]
[1735634140522,20.52961522,192.69,192.52,0.2076]
[1735634140715,20.52961522,192.66,192.52,0.2076]
[1735634140920,8.6608,192.65,192.52,2.8095]
[1735634141221,8.6608,192.65,192.52,0.2076]
[1735634141722,8.6608,192.65,192.52,2.8095]
[1735634142121,8.6608,192.65,192.52,2.6019]
[1735634142323,8.6608,192.65,192.51,342.19170704]
[1735634142821,8.6608,192.65,192.54,2.6016]
[1735634143014,3.0714,192.65,192.53,20.52961522]
[1735634143218,4.1,192.71,192.53,20.52961522]
[1735634143419,4.1,192.71,192.6,2.6008]
[1735634144423,4.1,192.71,192.58,2.6011]
[1735634144623,24.62961522,192.71,192.57,4.1]
[1735634145220,20.52961522,192.68,192.53,4.1]
[1735634145423,1.4829,192.67,192.51,362.72132226]
[1735634145719,1.4829,192.67,192.51,365.32332226]
[1735634145922,20.52961522,192.64,192.51,342.19170704]
[1735634146115,4.1,192.63,192.51,342.19170704]
[1735634147022,4.1,192.63,192.52,2.6019]
[1735634147222,4.1,192.63,192.4,48.3938163]
[1735634147421,20.52961522,192.6,192.43,20.52961522]
[1735634147626,20.52961522,192.6,192.47,2.6025]
[1735634147826,20.52961522,192.6,192.42,7.17972092]
[1735634148127,20.52961522,192.6,192.42,23.60933614]
[1735634148334,20.52961522,192.56,192.42,3.07972092]
[1735634148522,4.1,192.55,192.42,3.07972092]
[1735634148720,7.2051,192.55,192.42,5.68282092]
[1735634148917,8.7684,192.55,192.42,3.07972092]
[1735634149328,8.7684,192.55,192.46,2.6027]
[1735634149629,7.2051,192.55,192.42,23.60933614]
[1735634150227,7.2051,192.55,192.48,2.6024]
[1735634150825,3.1051,192.55,192.45,20.52961522]
[1735634151320,20.52961522,192.63,192.45,20.52961522]
[1735634151524,4.1,192.61,192.45,20.52961522]
[1735634151725,20.52961522,192.63,192.45,20.52961522]
[1735634152025,4.1,192.62,192.52,2.6019]
[1735634152527,4.1,192.62,192.5,2.602]
[1735634153423,4.1,192.62,192.44,20.52961522]
[1735634153424,20.52961522,192.6,192.44,20.52961522]
[1735634153624,20.52961522,192.6,192.43,4.12]
[1735634153822,20.52961522,192.6,192.46,2.6027]
[1735634154227,20.52961522,192.6,192.42,7.19972092]
[1735634154625,20.52961522,192.55,192.42,3.07972092]
[1735634154929,4.6965,192.54,192.43,2.603]
[1735634155128,4.6965,192.54,192.42,3.07972092]
[1735634155633,4.6965,192.54,192.45,2.6029]
[1735634155829,4.6965,192.54,192.42,3.07972092]
[1735634156730,4.6965,192.54,192.45,2.6028]
[1735634156927,4.6965,192.54,192.42,3.07972092]
[1735634157722,20.52961522,192.52,192.42,3.07972092]
[1735634158324,20.52961522,192.52,192.4,48.3938163]
[1735634159024,20.52961522,192.52,192.41,2.6034]
[1735634159224,20.52961522,192.52,192.4,48.3938163]
[1735634160922,20.52961522,192.52,192.35,4.0]
[1735634161232,20.52961522,192.49,192.33,20.52961522]
[1735634161528,4.0,192.48,192.33,4.0]
[1735634161732,20.52961522,192.46,192.37,2.6039]
[1735634161933,20.52961522,192.46,192.31,4.2095]
[1735634162127,1.5708,192.45,192.31,4.2095]
[1735634162329,1.5708,192.45,192.31,4.0]
[1735634162529,20.52961522,192.43,192.27,20.52961522]
[1735634162831,4.0,192.42,192.27,20.52961522]
[1735634163030,4.0,192.42,192.28,4.0]
[1735634163430,4.0,192.42,192.29,4.0]
[1735634164036,4.0,192.42,192.33,2.6044]
[1735634164432,4.0,192.42,192.29,4.0]
[1735634164630,4.0,192.42,192.32,2.6046]
[1735634165234,4.0,192.42,192.31,2.6047]
[1735634165731,4.0,192.42,192.27,4.0]
[1735634166538,4.0,192.42,192.32,2.6045]
[1735634166738,4.0,192.42,192.28,4.0]
[1735634166934,20.52961522,192.4,192.27,4.0]
[1735634167638,20.52961522,192.4,192.29,2.6049]
[1735634167838,20.52961522,192.4,192.27,4.0]
[1735634168240,20.52961522,192.4,192.28,2.6051]
[1735634168638,20.52961522,192.4,192.24,27.39858571]
[1735634169145,20.52961522,192.4,192.25,27.47588197]
[1735634169541,20.52961522,192.37,192.27,2.6052]
[1735634169745,5.5069,192.36,192.25,27.47588197]
[1735634170047,5.5069,192.36,192.27,6.86897049]
[1735634170745,20.52961522,192.34,192.27,6.86897049]
[1735634170944,3.0326,192.44,192.27,6.86897049]
[1735634171146,4.0,192.42,192.25,20.52961522]
[1735634171351,20.52961522,192.4,192.25,4.0]
[1735634171852,20.52961522,192.37,192.25,2.6055]
[1735634172046,4.0,192.36,192.25,82.42764592]
[1735634172448,4.0,192.36,192.28,2.6051]
[1735634172749,4.0,192.36,192.25,82.42764592]
[1735634173259,4.0,192.36,192.23,301.73197465]
[1735634174452,4.0,192.36,192.26,2.6054]
[1735634174646,4.0,192.36,192.23,301.73197465]
[1735634174847,20.52961522,192.34,192.22,85.51069987]
[1735634175251,3.1293,192.33,192.22,85.51069987]
[1735634175546,3.1293,192.33,192.26,2.6053]
[1735634176554,3.1293,192.33,192.25,2.6055]
[1735634176752,3.1293,192.33,192.22,3.08305395]
[1735634177151,3.1293,192.33,192.24,2.6056]
[1735634177549,3.1293,192.33,192.22,3.08305395]
[1735634178048,3.1293,192.33,192.26,2.6053]
[1735634178756,3.1293,192.33,192.22,3.08305395]
[1735634178952,3.1293,192.33,192.22,64.90378839]
[1735634179157,3.1293,192.33,192.22,85.51069987]
[1735634179352,4.6267,192.33,192.23,2.6058]
[1735634181150,4.6267,192.33,192.26,2.6054]
[1735634181555,3.1293,192.33,192.22,3.08305395]
[1735634181754,3.1293,192.33,192.28,2.6051]
[1735634182150,3.1293,192.33,192.22,3.08305395]
[1735634182151,20.52961522,192.45,192.32,2.6045]
[1735634182351,20.52961522,192.45,192.31,4.02]
[1735634182550,20.52961522,192.48,192.33,20.52961522]
[1735634182754,20.52961522,192.48,192.34,4.02]
[1735634183355,20.52961522,192.48,192.41,2.6034]
[1735634183557,8.6164,192.49,192.41,2.6034]
[1735634183852,8.6164,192.49,192.34,4.02]
[1735634184053,20.52961522,192.48,192.35,4.72953265]
[1735634184252,20.52961522,192.48,192.33,301.73197465]